Creditor Name,Section,Voucher No,Cost Code,Detail Code,Type of Expenditure,Description,Payment Date,Net Amount
A J Taylor Limited,Property Services,V087986,0900,1000,Premises,Repairs & Maintenance,11/07/2018,188.00
A J Taylor Limited,Property Services,V087986,2972,1000,Premises,Repairs & Maintenance,11/07/2018,184.80
A J Taylor Limited,Property Services,V088120,2950,1000,Premises,Repairs & Maintenance,19/07/2018,79.20
A J Taylor Limited,Property Services,V088120,2950,1000,Premises,Repairs & Maintenance,19/07/2018,439.37
Adams Integra Ltd,Development Control,V088278,7300,2800,Third Party payments,Contractors,27/07/2018,2000.00
Adelante Software Ltd,Finance,V087964,8861,2105,Supplies and Services,ICT Hardware & Projects,11/07/2018,3704.40
Adelante Software Ltd,Finance,V087965,8645,2105,Supplies and Services,ICT Hardware & Projects,11/07/2018,3018.40
Adrian Hope Tree Services,Operations,V088191,0960,1000,Premises,Repairs & Maintenance,25/07/2018,1135.00
Aldermore Invoice Finance,Property Services,V088101,6590,2000,Supplies and Services,Furniture & Equipment,19/07/2018,425.00
Aldermore Invoice Finance,Property Services,V088114,2975,1000,Premises,Repairs & Maintenance,19/07/2018,303.60
Allstar Business Solutions Ltd,Operations,V087608,9918,8902,Balance Sheet,Payments,05/07/2018,349.93
Alphabet (UK) Limited,Finance,V087976,6098,3600,Transport,Car Leases,27/07/2018,1248.45
Alphabet (UK) Limited,Finance,V087976,6098,3600,Transport,Car Leases,27/07/2018,1509.38
Andrew Grout,Building Control,V087893,7500,2800,Third Party payments,Contractors,05/07/2018,350.00
Anglers View Bed and Breakfast,Housing,V088111,3300,2800,Third Party payments,Contractors,19/07/2018,455.00
Anglers View Bed and Breakfast,Housing,V088112,3300,2800,Third Party payments,Contractors,19/07/2018,650.00
Anglers View Bed and Breakfast,Housing,V088201,3300,2800,Third Party payments,Contractors,25/07/2018,455.00
Aqua Cleansing Ltd,Operations,V088177,0925,3510,Transport,Vehicle Maintenance,23/07/2018,634.00
Arthur Spriggs & Sons Ltd,Operations,V087727,0824,3510,Transport,Vehicle Maintenance,05/07/2018,494.25
Blind Dave,Community Services,V087939,6201,2800,Third Party payments,Contractors,27/07/2018,490.00
Bromsgrove District Council,Finance,P088300,4320,5507,Third Party payments,OLA`s,31/07/2018,32166.66
Brookhire Vehicle Rental,Operations,V087755,0929,3150,Transport,Vehicle Hire,03/07/2018,1140.16
Brookhire Vehicle Rental,Operations,V087886,0722,3510,Transport,Vehicle Maintenance,05/07/2018,418.09
Brookhire Vehicle Rental,Operations,V087887,0830,3510,Transport,Vehicle Maintenance,05/07/2018,570.04
Brookhire Vehicle Rental,Operations,V088199,0929,3150,Transport,Vehicle Hire,31/07/2018,1140.16
C J Bayliss (Hereford) Ltd,Property Services,V088072,1147,7010,Capital,Works,23/07/2018,13764.87
C P Davidson and Sons Ltd,Operations,V088027,0777,3510,Transport,Vehicle Maintenance,23/07/2018,357.50
C P Davidson and Sons Ltd,Operations,V088028,0795,3510,Transport,Vehicle Maintenance,25/07/2018,293.58
CMP Consult,Economic Development,V088049,6723,5400,Third Party payments,Grants,13/07/2018,500.00
CMS Supatrak Ltd,Operations,V087836,0700,3100,Transport,"Vehicle General Costs (Cleaning,CMS FTA)",05/07/2018,9.99
CMS Supatrak Ltd,Operations,V087836,0701,3100,Transport,"Vehicle General Costs (Cleaning,CMS FTA)",05/07/2018,9.99
CMS Supatrak Ltd,Operations,V087836,0704,3100,Transport,"Vehicle General Costs (Cleaning,CMS FTA)",05/07/2018,9.99
CMS Supatrak Ltd,Operations,V087836,0722,3100,Transport,"Vehicle General Costs (Cleaning,CMS FTA)",05/07/2018,9.99
CMS Supatrak Ltd,Operations,V087836,0723,3100,Transport,"Vehicle General Costs (Cleaning,CMS FTA)",05/07/2018,9.99
CMS Supatrak Ltd,Operations,V087836,0724,3100,Transport,"Vehicle General Costs (Cleaning,CMS FTA)",05/07/2018,9.99
CMS Supatrak Ltd,Operations,V087836,0725,3100,Transport,"Vehicle General Costs (Cleaning,CMS FTA)",05/07/2018,9.99
CMS Supatrak Ltd,Operations,V087836,0726,3100,Transport,"Vehicle General Costs (Cleaning,CMS FTA)",05/07/2018,9.99
CMS Supatrak Ltd,Operations,V087836,0727,3100,Transport,"Vehicle General Costs (Cleaning,CMS FTA)",05/07/2018,9.99
CMS Supatrak Ltd,Operations,V087836,0728,3100,Transport,"Vehicle General Costs (Cleaning,CMS FTA)",05/07/2018,9.99
CMS Supatrak Ltd,Operations,V087836,0762,3100,Transport,"Vehicle General Costs (Cleaning,CMS FTA)",05/07/2018,9.99
CMS Supatrak Ltd,Operations,V087836,0765,3100,Transport,"Vehicle General Costs (Cleaning,CMS FTA)",05/07/2018,9.99
CMS Supatrak Ltd,Operations,V087836,0767,3100,Transport,"Vehicle General Costs (Cleaning,CMS FTA)",05/07/2018,9.99
CMS Supatrak Ltd,Operations,V087836,0777,3100,Transport,"Vehicle General Costs (Cleaning,CMS FTA)",05/07/2018,9.99
CMS Supatrak Ltd,Operations,V087836,0778,3100,Transport,"Vehicle General Costs (Cleaning,CMS FTA)",05/07/2018,9.99
CMS Supatrak Ltd,Operations,V087836,0794,3100,Transport,"Vehicle General Costs (Cleaning,CMS FTA)",05/07/2018,9.99
CMS Supatrak Ltd,Operations,V087836,0795,3100,Transport,"Vehicle General Costs (Cleaning,CMS FTA)",05/07/2018,9.99
CMS Supatrak Ltd,Operations,V087836,0796,3100,Transport,"Vehicle General Costs (Cleaning,CMS FTA)",05/07/2018,9.99
CMS Supatrak Ltd,Operations,V087836,0815,3100,Transport,"Vehicle General Costs (Cleaning,CMS FTA)",05/07/2018,9.99
CMS Supatrak Ltd,Operations,V087836,0816,3100,Transport,"Vehicle General Costs (Cleaning,CMS FTA)",05/07/2018,9.99
CMS Supatrak Ltd,Operations,V087836,0817,3100,Transport,"Vehicle General Costs (Cleaning,CMS FTA)",05/07/2018,9.99
CMS Supatrak Ltd,Operations,V087836,0818,3100,Transport,"Vehicle General Costs (Cleaning,CMS FTA)",05/07/2018,9.99
CMS Supatrak Ltd,Operations,V087836,0821,3100,Transport,"Vehicle General Costs (Cleaning,CMS FTA)",05/07/2018,9.99
CMS Supatrak Ltd,Operations,V087836,0822,3100,Transport,"Vehicle General Costs (Cleaning,CMS FTA)",05/07/2018,9.99
CMS Supatrak Ltd,Operations,V087836,0823,3100,Transport,"Vehicle General Costs (Cleaning,CMS FTA)",05/07/2018,9.99
CMS Supatrak Ltd,Operations,V087836,0824,3100,Transport,"Vehicle General Costs (Cleaning,CMS FTA)",05/07/2018,9.99
CMS Supatrak Ltd,Operations,V087836,0825,3100,Transport,"Vehicle General Costs (Cleaning,CMS FTA)",05/07/2018,9.99
CMS Supatrak Ltd,Operations,V087836,0826,3100,Transport,"Vehicle General Costs (Cleaning,CMS FTA)",05/07/2018,9.99
CMS Supatrak Ltd,Operations,V087836,0828,3100,Transport,"Vehicle General Costs (Cleaning,CMS FTA)",05/07/2018,9.99
CMS Supatrak Ltd,Operations,V087836,0829,3100,Transport,"Vehicle General Costs (Cleaning,CMS FTA)",05/07/2018,9.99
CMS Supatrak Ltd,Operations,V087836,0830,3100,Transport,"Vehicle General Costs (Cleaning,CMS FTA)",05/07/2018,9.99
CMS Supatrak Ltd,Operations,V087836,0831,3100,Transport,"Vehicle General Costs (Cleaning,CMS FTA)",05/07/2018,9.99
CMS Supatrak Ltd,Operations,V087836,0832,3100,Transport,"Vehicle General Costs (Cleaning,CMS FTA)",05/07/2018,9.99
CMS Supatrak Ltd,Operations,V087846,0764,3100,Transport,"Vehicle General Costs (Cleaning,CMS FTA)",25/07/2018,359.64
CMS Supatrak Ltd,Operations,V087847,0764,3100,Transport,"Vehicle General Costs (Cleaning,CMS FTA)",25/07/2018,265.00
CMS Supatrak Ltd,Operations,V087859,0700,3100,Transport,"Vehicle General Costs (Cleaning,CMS FTA)",27/07/2018,9.99
CMS Supatrak Ltd,Operations,V087859,0701,3100,Transport,"Vehicle General Costs (Cleaning,CMS FTA)",27/07/2018,9.99
CMS Supatrak Ltd,Operations,V087859,0704,3100,Transport,"Vehicle General Costs (Cleaning,CMS FTA)",27/07/2018,9.99
CMS Supatrak Ltd,Operations,V087859,0722,3100,Transport,"Vehicle General Costs (Cleaning,CMS FTA)",27/07/2018,9.99
CMS Supatrak Ltd,Operations,V087859,0723,3100,Transport,"Vehicle General Costs (Cleaning,CMS FTA)",27/07/2018,9.99
CMS Supatrak Ltd,Operations,V087859,0724,3100,Transport,"Vehicle General Costs (Cleaning,CMS FTA)",27/07/2018,9.99
CMS Supatrak Ltd,Operations,V087859,0725,3100,Transport,"Vehicle General Costs (Cleaning,CMS FTA)",27/07/2018,9.99
CMS Supatrak Ltd,Operations,V087859,0726,3100,Transport,"Vehicle General Costs (Cleaning,CMS FTA)",27/07/2018,9.99
CMS Supatrak Ltd,Operations,V087859,0727,3100,Transport,"Vehicle General Costs (Cleaning,CMS FTA)",27/07/2018,9.99
CMS Supatrak Ltd,Operations,V087859,0728,3100,Transport,"Vehicle General Costs (Cleaning,CMS FTA)",27/07/2018,9.99
CMS Supatrak Ltd,Operations,V087859,0762,3100,Transport,"Vehicle General Costs (Cleaning,CMS FTA)",27/07/2018,9.99
CMS Supatrak Ltd,Operations,V087859,0765,3100,Transport,"Vehicle General Costs (Cleaning,CMS FTA)",27/07/2018,9.99
CMS Supatrak Ltd,Operations,V087859,0767,3100,Transport,"Vehicle General Costs (Cleaning,CMS FTA)",27/07/2018,9.99
CMS Supatrak Ltd,Operations,V087859,0777,3100,Transport,"Vehicle General Costs (Cleaning,CMS FTA)",27/07/2018,9.99
CMS Supatrak Ltd,Operations,V087859,0778,3100,Transport,"Vehicle General Costs (Cleaning,CMS FTA)",27/07/2018,9.99
CMS Supatrak Ltd,Operations,V087859,0794,3100,Transport,"Vehicle General Costs (Cleaning,CMS FTA)",27/07/2018,9.99
CMS Supatrak Ltd,Operations,V087859,0795,3100,Transport,"Vehicle General Costs (Cleaning,CMS FTA)",27/07/2018,9.99
CMS Supatrak Ltd,Operations,V087859,0796,3100,Transport,"Vehicle General Costs (Cleaning,CMS FTA)",27/07/2018,9.99
CMS Supatrak Ltd,Operations,V087859,0815,3100,Transport,"Vehicle General Costs (Cleaning,CMS FTA)",27/07/2018,9.99
CMS Supatrak Ltd,Operations,V087859,0816,3100,Transport,"Vehicle General Costs (Cleaning,CMS FTA)",27/07/2018,9.99
CMS Supatrak Ltd,Operations,V087859,0817,3100,Transport,"Vehicle General Costs (Cleaning,CMS FTA)",27/07/2018,9.99
CMS Supatrak Ltd,Operations,V087859,0818,3100,Transport,"Vehicle General Costs (Cleaning,CMS FTA)",27/07/2018,9.99
CMS Supatrak Ltd,Operations,V087859,0821,3100,Transport,"Vehicle General Costs (Cleaning,CMS FTA)",27/07/2018,9.99
CMS Supatrak Ltd,Operations,V087859,0822,3100,Transport,"Vehicle General Costs (Cleaning,CMS FTA)",27/07/2018,9.99
CMS Supatrak Ltd,Operations,V087859,0823,3100,Transport,"Vehicle General Costs (Cleaning,CMS FTA)",27/07/2018,9.99
CMS Supatrak Ltd,Operations,V087859,0824,3100,Transport,"Vehicle General Costs (Cleaning,CMS FTA)",27/07/2018,9.99
CMS Supatrak Ltd,Operations,V087859,0825,3100,Transport,"Vehicle General Costs (Cleaning,CMS FTA)",27/07/2018,9.99
CMS Supatrak Ltd,Operations,V087859,0826,3100,Transport,"Vehicle General Costs (Cleaning,CMS FTA)",27/07/2018,9.99
CMS Supatrak Ltd,Operations,V087859,0828,3100,Transport,"Vehicle General Costs (Cleaning,CMS FTA)",27/07/2018,9.99
CMS Supatrak Ltd,Operations,V087859,0829,3100,Transport,"Vehicle General Costs (Cleaning,CMS FTA)",27/07/2018,9.99
CMS Supatrak Ltd,Operations,V087859,0830,3100,Transport,"Vehicle General Costs (Cleaning,CMS FTA)",27/07/2018,9.99
CMS Supatrak Ltd,Operations,V087859,0831,3100,Transport,"Vehicle General Costs (Cleaning,CMS FTA)",27/07/2018,9.99
CMS Supatrak Ltd,Operations,V087859,0832,3100,Transport,"Vehicle General Costs (Cleaning,CMS FTA)",27/07/2018,9.99
Cognet Ltd,Property Services,V087761,4837,0600,Employees,Training,17/07/2018,395.00
Cognet Ltd,Property Services,V087778,4837,0600,Employees,Training,23/07/2018,395.00
Community Action Malvern and District,Community Services,V087842,4070,5529,Third Party payments,Concessionary Fares,03/07/2018,1406.00
Community Action Malvern and District,Community Services,V088135,4070,5529,Third Party payments,Concessionary Fares,23/07/2018,1465.00
EDF Energy,Property Services,V088129,2988,1301,Premises,Electricity,23/07/2018,350.70
Enlighten Limited,Finance,V088080,8812,0700,Employees,Staff Welfare,17/07/2018,672.30
Freedom Leisure,Economic Development,P088238,6120,5400,Third Party payments,Grants,27/07/2018,17119.00
Geesink Norba Ltd,Operations,V087568,0818,3510,Transport,Vehicle Maintenance,05/07/2018,833.62
Geesink Norba Ltd,Operations,V087587,0821,3510,Transport,Vehicle Maintenance,05/07/2018,504.94
Geesink Norba Ltd,Operations,V087588,0822,3510,Transport,Vehicle Maintenance,05/07/2018,752.50
Geesink Norba Ltd,Operations,V087679,0823,3510,Transport,Vehicle Maintenance,17/07/2018,901.27
Geesink Norba Ltd,Operations,V087723,0818,3510,Transport,Vehicle Maintenance,17/07/2018,2553.54
Geesink Norba Ltd,Operations,V087865,0817,3510,Transport,Vehicle Maintenance,27/07/2018,1258.54
Geesink Norba Ltd,Operations,V087868,0823,3510,Transport,Vehicle Maintenance,27/07/2018,383.24
Geesink Norba Ltd,Operations,V087870,0818,3510,Transport,Vehicle Maintenance,27/07/2018,570.66
Gerald Eve LLP,Development Control,V088196,7300,2800,Third Party payments,Contractors,25/07/2018,1300.00
Global Payments,Finance,V087968,2607,5543,Supplies and Services,Credit Card Commission,17/07/2018,7.00
Global Payments,Finance,V087968,2607,5543,Supplies and Services,Credit Card Commission,17/07/2018,1755.69
Global Payments,Finance,V087969,2607,5543,Supplies and Services,Credit Card Commission,17/07/2018,7.00
Global Payments,Finance,V087969,2607,5543,Supplies and Services,Credit Card Commission,17/07/2018,952.64
HSBC Bank Plc - Bank Charges,Finance,V087894,2607,2814,Supplies and Services,Bank Charges,12/07/2018,15.00
HSBC Bank Plc - Bank Charges,Finance,V087894,2607,2814,Supplies and Services,Bank Charges,12/07/2018,2027.48
HSBC Invoice Finance (UK) Ltd,Operations,V087852,0929,0200,Employees,Agency Staff,03/07/2018,264.15
Insight Direct (UK) Limited,Property Services,V087869,2950,2135,Supplies and Services,Computers - Software,25/07/2018,345.00
Jark (Worcester) Ltd,Operations,V087803,0920,0200,Employees,Agency Staff,03/07/2018,837.90
Jark (Worcester) Ltd,Operations,V087803,0935,0200,Employees,Agency Staff,03/07/2018,508.20
Jark (Worcester) Ltd,Operations,V087931,0920,0200,Employees,Agency Staff,09/07/2018,441.00
Jark (Worcester) Ltd,Operations,V087931,0935,0200,Employees,Agency Staff,09/07/2018,711.48
Jark (Worcester) Ltd,Operations,V088044,0920,0200,Employees,Agency Staff,17/07/2018,371.70
Jark (Worcester) Ltd,Operations,V088044,0935,0200,Employees,Agency Staff,17/07/2018,609.84
Jark (Worcester) Ltd,Operations,V088141,0920,0200,Employees,Agency Staff,23/07/2018,478.80
Jark (Worcester) Ltd,Operations,V088141,0935,0200,Employees,Agency Staff,23/07/2018,508.20
John Goodwin Frics,Housing,V088088,3600,2800,Third Party payments,Contractors,17/07/2018,742.50
Karl Rigby,Property Services,V087853,2972,1000,Premises,Repairs & Maintenance,03/07/2018,408.00
Lepus Consulting Ltd,Finance,V087879,7006,2800,Third Party payments,Contractors,19/07/2018,916.53
LLG (Membership),Legal Services,V088172,8841,4130,Supplies and Services,Publications,23/07/2018,550.00
Lloyds TSB Commercial Finance,Housing,V087940,1563,7201,Capital,Mandatory Disabled Facilities Grant,09/07/2018,3615.00
Lloyds TSB Commercial Finance,Housing,V087941,1563,7201,Capital,Mandatory Disabled Facilities Grant,09/07/2018,3505.00
Lloyds TSB Commercial Finance,Housing,V087942,1563,7201,Capital,Mandatory Disabled Facilities Grant,09/07/2018,3070.00
Lloyds TSB Commercial Finance,Housing,V088006,1563,7201,Capital,Mandatory Disabled Facilities Grant,11/07/2018,6010.00
Lloyds TSB Commercial Finance,Housing,V088007,1563,7201,Capital,Mandatory Disabled Facilities Grant,11/07/2018,3406.60
Lloyds TSB Commercial Finance,Housing,V088048,1563,7209,Capital,Discretionary Standard Adaptation Assist,13/07/2018,3867.23
Loo of the Year Awards Ltd,Operations,V088086,0935,1000,Premises,Repairs & Maintenance,17/07/2018,1136.00
Mad as a March Hare Ltd,Economic Development,V087930,6400,2800,Third Party payments,Contractors,09/07/2018,1150.00
Mad as a March Hare Ltd,Community Services,V088121,6230,2800,Third Party payments,Contractors,19/07/2018,1125.00
Maitie Wright,Community Services,V087902,6230,2800,Third Party payments,Contractors,19/07/2018,250.00
Malvern Dial-A-Ride,Community Services,V088068,4070,5529,Third Party payments,Concessionary Fares,17/07/2018,506.00
Malvern Hills Trust,Tourism,V088037,6550,9252,Income,Commission,17/07/2018,-196.78
Malvern Hills Trust,Tourism,V088037,9551,8902,Balance Sheet,Payments,17/07/2018,1967.80
Media Agency Group Ltd,Community Services,V087873,6230,2800,Third Party payments,Contractors,11/07/2018,4112.00
Melton Support Services,Property Services,V088014,6550,1311,Premises,Contract cleaning & Cleaning Supplies,27/07/2018,335.08
Midland Commercials Ltd,Operations,V088032,0704,3510,Transport,Vehicle Maintenance,17/07/2018,47.63
Midland Commercials Ltd,Operations,V088032,0704,3510,Transport,Vehicle Maintenance,17/07/2018,48.00
Midland Commercials Ltd,Operations,V088032,0767,3510,Transport,Vehicle Maintenance,17/07/2018,93.64
Midland Commercials Ltd,Operations,V088032,0777,3510,Transport,Vehicle Maintenance,17/07/2018,193.50
Midland Commercials Ltd,Operations,V088032,0778,3510,Transport,Vehicle Maintenance,17/07/2018,76.63
Midland Commercials Ltd,Operations,V088032,0795,3510,Transport,Vehicle Maintenance,17/07/2018,11.25
Midland Commercials Ltd,Operations,V088032,0796,3510,Transport,Vehicle Maintenance,17/07/2018,208.53
Midland Commercials Ltd,Operations,V088032,0815,3510,Transport,Vehicle Maintenance,17/07/2018,465.37
Midland Commercials Ltd,Operations,V088032,0816,3510,Transport,Vehicle Maintenance,17/07/2018,310.25
Midland Commercials Ltd,Operations,V088032,0817,3510,Transport,Vehicle Maintenance,17/07/2018,905.69
Midland Commercials Ltd,Operations,V088032,0818,3510,Transport,Vehicle Maintenance,17/07/2018,250.00
Midland Commercials Ltd,Operations,V088032,0822,3510,Transport,Vehicle Maintenance,17/07/2018,2875.18
Midland Commercials Ltd,Operations,V088032,0823,3510,Transport,Vehicle Maintenance,17/07/2018,128.50
Midland Commercials Ltd,Operations,V088032,0824,3510,Transport,Vehicle Maintenance,17/07/2018,659.89
Midland Commercials Ltd,Operations,V088032,0826,3510,Transport,Vehicle Maintenance,17/07/2018,113.00
Midland Commercials Ltd,Operations,V088032,0829,3510,Transport,Vehicle Maintenance,17/07/2018,862.51
Midland Commercials Ltd,Operations,V088032,0830,3510,Transport,Vehicle Maintenance,17/07/2018,46.26
Midland Commercials Ltd,Operations,V088032,0831,3510,Transport,Vehicle Maintenance,17/07/2018,2771.69
Midland Commercials Ltd,Operations,V088032,0832,3510,Transport,Vehicle Maintenance,17/07/2018,78.11
Midland Commercials Ltd,Operations,V088089,0777,3510,Transport,Vehicle Maintenance,23/07/2018,214.38
Midland Commercials Ltd,Operations,V088089,0816,3510,Transport,Vehicle Maintenance,23/07/2018,72.29
Midland Commercials Ltd,Operations,V088089,0817,3510,Transport,Vehicle Maintenance,23/07/2018,22.50
Midland Commercials Ltd,Operations,V088089,0824,3510,Transport,Vehicle Maintenance,23/07/2018,4106.81
Midland Commercials Ltd,Operations,V088089,0832,3510,Transport,Vehicle Maintenance,23/07/2018,34.57
Midland Commercials Ltd,Operations,V088089,0832,3510,Transport,Vehicle Maintenance,23/07/2018,137.00
Midland Commercials Ltd,Operations,V088147,0701,3510,Transport,Vehicle Maintenance,27/07/2018,187.55
Midland Commercials Ltd,Operations,V088147,0796,3510,Transport,Vehicle Maintenance,27/07/2018,335.94
Midland Commercials Ltd,Operations,V088147,0816,3510,Transport,Vehicle Maintenance,27/07/2018,22.50
Midland Commercials Ltd,Operations,V088147,0816,3510,Transport,Vehicle Maintenance,27/07/2018,189.57
Midland Commercials Ltd,Operations,V088147,0817,3510,Transport,Vehicle Maintenance,27/07/2018,50.65
Midland Commercials Ltd,Operations,V088147,0817,3510,Transport,Vehicle Maintenance,27/07/2018,287.00
Midland Commercials Ltd,Operations,V088147,0818,3510,Transport,Vehicle Maintenance,27/07/2018,32.95
Midland Commercials Ltd,Operations,V088147,0818,3510,Transport,Vehicle Maintenance,27/07/2018,68.74
Midland Commercials Ltd,Operations,V088147,0821,3510,Transport,Vehicle Maintenance,27/07/2018,275.11
Midland Commercials Ltd,Operations,V088147,0823,3510,Transport,Vehicle Maintenance,27/07/2018,1054.20
Midland Commercials Ltd,Operations,V088147,0823,3510,Transport,Vehicle Maintenance,27/07/2018,182.52
Midland Commercials Ltd,Operations,V088147,0826,3510,Transport,Vehicle Maintenance,27/07/2018,1699.74
Midland Commercials Ltd,Operations,V088147,0826,3510,Transport,Vehicle Maintenance,27/07/2018,67.00
Midland Commercials Ltd,Operations,V088147,0832,3510,Transport,Vehicle Maintenance,27/07/2018,217.83
Midland Communications Ltd,Finance,V088036,0900,4230,Supplies and Services,Telephones,26/07/2018,34.50
Midland Communications Ltd,Finance,V088036,2971,4230,Supplies and Services,Telephones,26/07/2018,11.50
Midland Communications Ltd,Finance,V088036,2972,4230,Supplies and Services,Telephones,26/07/2018,11.50
Midland Communications Ltd,Finance,V088036,4302,4230,Supplies and Services,Telephones,26/07/2018,11.71
Midland Communications Ltd,Finance,V088036,6550,4230,Supplies and Services,Telephones,26/07/2018,79.06
Midland Communications Ltd,Finance,V088036,6590,4230,Supplies and Services,Telephones,26/07/2018,91.58
Midland Communications Ltd,Finance,V088036,8631,4230,Supplies and Services,Telephones,26/07/2018,83.25
Midland Communications Ltd,Finance,V088036,8645,4230,Supplies and Services,Telephones,26/07/2018,64.50
Minuteman Press,Operations,V088181,0929,4000,Supplies and Services,Printing & Photocopying,25/07/2018,749.35
Minuteman Press,Operations,V088181,0929,4000,Supplies and Services,Printing & Photocopying,25/07/2018,421.00
Mobile Valeting Services,Operations,V087829,0925,3510,Transport,Vehicle Maintenance,03/07/2018,1050.00
Modus Print Ltd,Community Services,V088084,6098,2800,Third Party payments,Contractors,19/07/2018,519.00
Mr C Jones,Finance,V088185,9495,8902,Balance Sheet,Payments,31/07/2018,-1200.00
Mr C Jones,Finance,V088185,9495,8902,Balance Sheet,Payments,25/07/2018,1200.00
Mr C Jones,Finance,V088185,9495,8902,Balance Sheet,Payments,19/07/2018,1200.00
Newsquest (Media Group) Limited,Development Control,V087656,7300,4210,Third Party payments,Advertising,13/07/2018,252.00
Newsquest (Media Group) Limited,Economic Development,V087932,6750,4330,Third Party payments,Publicity & Promotions,23/07/2018,1333.34
No5 Chambers,Development Control,V087900,7300,2800,Third Party payments,Contractors,23/07/2018,775.00
No5 Chambers,Development Control,V087903,7300,2800,Third Party payments,Contractors,23/07/2018,775.00
npower Limited,Property Services,V087864,0900,1301,Premises,Electricity,11/07/2018,416.14
npower Limited,Property Services,V087864,2973,1301,Premises,Electricity,11/07/2018,165.41
npower Limited,Property Services,V088000,0900,1301,Premises,Electricity,13/07/2018,342.33
npower Limited,Property Services,V088000,2972,1301,Premises,Electricity,13/07/2018,1272.75
npower Limited,Property Services,V088000,2973,1301,Premises,Electricity,13/07/2018,130.16
npower Limited,Property Services,V088092,2950,1301,Premises,Electricity,17/07/2018,872.85
npower Limited,Property Services,V088092,4151,1301,Premises,Electricity,17/07/2018,10.00
npower Limited,Property Services,V088092,4152,1301,Premises,Electricity,17/07/2018,11.72
npower Limited,Property Services,V088092,4191,1301,Premises,Electricity,17/07/2018,55.73
npower Limited,Property Services,V088092,4651,1301,Premises,Electricity,17/07/2018,55.72
npower Limited,Property Services,V088136,2975,1301,Premises,Electricity,23/07/2018,41.89
npower Limited,Property Services,V088136,2979,1301,Premises,Electricity,23/07/2018,5.56
npower Limited,Property Services,V088136,2982,1301,Premises,Electricity,23/07/2018,19.38
npower Limited,Property Services,V088136,2984,1301,Premises,Electricity,23/07/2018,25.44
npower Limited,Property Services,V088136,4660,1301,Premises,Electricity,23/07/2018,98.00
npower Limited,Property Services,V088136,4661,1301,Premises,Electricity,23/07/2018,11.18
npower Limited,Property Services,V088136,6590,1301,Premises,Electricity,23/07/2018,838.93
NTM GB Ltd,Operations,V088283,0796,3510,Transport,Vehicle Maintenance,27/07/2018,538.49
One51 Plastics (UK) T/A MGB Plastics,Operations,V087833,0929,2000,Supplies and Services,Furniture & Equipment,03/07/2018,9773.00
One51 Plastics (UK) T/A MGB Plastics,Operations,V087834,0929,2000,Supplies and Services,Furniture & Equipment,03/07/2018,9773.00
Outside Studios Ltd,Community Services,V087933,6230,2800,Third Party payments,Contractors,27/07/2018,4458.35
Pertemps Ltd,Operations,V087558,0925,0200,Employees,Agency Staff,23/07/2018,352.06
Pertemps Ltd,Operations,V087582,0925,0200,Employees,Agency Staff,13/07/2018,590.41
Pertemps Ltd,Operations,V087802,0925,0200,Employees,Agency Staff,03/07/2018,690.99
Pertemps Ltd,Operations,V087815,0925,0200,Employees,Agency Staff,03/07/2018,400.62
Pertemps Ltd,Operations,V087816,0925,0200,Employees,Agency Staff,03/07/2018,456.06
Pertemps Ltd,Operations,V087817,0925,0200,Employees,Agency Staff,03/07/2018,507.89
Pertemps Ltd,Operations,V087818,0922,0200,Employees,Agency Staff,03/07/2018,111.75
Pertemps Ltd,Operations,V087818,0932,0200,Employees,Agency Staff,03/07/2018,432.10
Pertemps Ltd,Operations,V087819,0925,0200,Employees,Agency Staff,03/07/2018,163.89
Pertemps Ltd,Operations,V087819,0929,0200,Employees,Agency Staff,03/07/2018,103.19
Pertemps Ltd,Operations,V087819,4317,0200,Employees,Agency Staff,03/07/2018,97.12
Pertemps Ltd,Operations,V087820,0925,0200,Employees,Agency Staff,03/07/2018,376.34
Pertemps Ltd,Operations,V087821,0925,0200,Employees,Agency Staff,03/07/2018,421.87
Pertemps Ltd,Operations,V087822,0925,0200,Employees,Agency Staff,03/07/2018,558.44
Pertemps Ltd,Operations,V087823,0925,0200,Employees,Agency Staff,03/07/2018,473.00
Pertemps Ltd,Operations,V087912,0900,0200,Employees,Agency Staff,05/07/2018,579.96
Pertemps Ltd,Operations,V087913,0900,0200,Employees,Agency Staff,05/07/2018,434.97
Pertemps Ltd,Operations,V087914,0929,0200,Employees,Agency Staff,05/07/2018,604.44
Pertemps Ltd,Operations,V087915,0929,0200,Employees,Agency Staff,05/07/2018,604.44
Pertemps Ltd,Operations,V087935,0925,0200,Employees,Agency Staff,11/07/2018,808.33
Pertemps Ltd,Operations,V087936,0925,0200,Employees,Agency Staff,11/07/2018,385.45
Pertemps Ltd,Operations,V087955,0925,0200,Employees,Agency Staff,11/07/2018,473.34
Pertemps Ltd,Operations,V087956,0922,0200,Employees,Agency Staff,11/07/2018,89.40
Pertemps Ltd,Operations,V087956,0932,0200,Employees,Agency Staff,11/07/2018,435.83
Pertemps Ltd,Operations,V087958,0920,0200,Employees,Agency Staff,11/07/2018,428.42
Pertemps Ltd,Operations,V087959,0925,0200,Employees,Agency Staff,11/07/2018,437.04
Pertemps Ltd,Operations,V087960,0925,0200,Employees,Agency Staff,11/07/2018,507.27
Pertemps Ltd,Operations,V087961,0923,0200,Employees,Agency Staff,11/07/2018,173.00
Pertemps Ltd,Operations,V087961,0925,0200,Employees,Agency Staff,11/07/2018,142.65
Pertemps Ltd,Operations,V087961,0929,0200,Employees,Agency Staff,11/07/2018,91.05
Pertemps Ltd,Operations,V087961,4317,0200,Employees,Agency Staff,11/07/2018,88.01
Pertemps Ltd,Operations,V088023,0925,0200,Employees,Agency Staff,13/07/2018,568.98
Pertemps Ltd,Operations,V088043,0925,0200,Employees,Agency Staff,13/07/2018,608.52
Pertemps Ltd,Operations,V088056,0920,0200,Employees,Agency Staff,13/07/2018,76.01
Pertemps Ltd,Operations,V088056,0925,0200,Employees,Agency Staff,13/07/2018,461.24
Pertemps Ltd,Operations,V088057,0925,0200,Employees,Agency Staff,13/07/2018,497.52
Pertemps Ltd,Operations,V088057,0929,0200,Employees,Agency Staff,13/07/2018,148.57
Pertemps Ltd,Operations,V088058,0925,0200,Employees,Agency Staff,13/07/2018,507.27
Pertemps Ltd,Operations,V088059,0925,0200,Employees,Agency Staff,13/07/2018,490.15
Pertemps Ltd,Operations,V088060,0925,0200,Employees,Agency Staff,13/07/2018,430.97
Pertemps Ltd,Operations,V088061,0923,0200,Employees,Agency Staff,13/07/2018,91.05
Pertemps Ltd,Operations,V088061,0925,0200,Employees,Agency Staff,13/07/2018,291.36
Pertemps Ltd,Operations,V088061,4317,0200,Employees,Agency Staff,13/07/2018,84.98
Pertemps Ltd,Operations,V088062,0925,0200,Employees,Agency Staff,13/07/2018,397.59
Pertemps Ltd,Operations,V088063,0923,0200,Employees,Agency Staff,13/07/2018,176.03
Pertemps Ltd,Operations,V088063,0925,0200,Employees,Agency Staff,13/07/2018,267.08
Pertemps Ltd,Operations,V088064,0925,0200,Employees,Agency Staff,13/07/2018,707.75
Pertemps Ltd,Operations,V088065,0922,0200,Employees,Agency Staff,13/07/2018,96.85
Pertemps Ltd,Operations,V088065,0925,0200,Employees,Agency Staff,13/07/2018,439.55
Pertemps Ltd,Operations,V088126,0929,0200,Employees,Agency Staff,19/07/2018,621.00
Pertemps Ltd,Operations,V088127,0900,0200,Employees,Agency Staff,19/07/2018,483.30
Pertemps Ltd,Operations,V088140,0925,0200,Employees,Agency Staff,23/07/2018,553.89
Pertemps Ltd,Operations,V088158,0923,0200,Employees,Agency Staff,23/07/2018,117.47
Pertemps Ltd,Operations,V088158,0925,0200,Employees,Agency Staff,23/07/2018,193.48
Pertemps Ltd,Operations,V088158,0951,0200,Employees,Agency Staff,23/07/2018,152.02
Pertemps Ltd,Operations,V088159,0925,0200,Employees,Agency Staff,23/07/2018,490.61
Pertemps Ltd,Operations,V088160,0925,0200,Employees,Agency Staff,23/07/2018,452.43
Pertemps Ltd,Operations,V088161,0925,0200,Employees,Agency Staff,23/07/2018,503.81
Pertemps Ltd,Operations,V088162,0925,0200,Employees,Agency Staff,23/07/2018,403.66
Pertemps Ltd,Operations,V088163,0925,0200,Employees,Agency Staff,23/07/2018,394.55
Pertemps Ltd,Operations,V088164,0922,0200,Employees,Agency Staff,23/07/2018,522.02
Pertemps Ltd,Operations,V088165,0925,0200,Employees,Agency Staff,23/07/2018,397.59
Pertemps Ltd,Operations,V088166,0922,0200,Employees,Agency Staff,23/07/2018,111.75
Pertemps Ltd,Operations,V088166,0932,0200,Employees,Agency Staff,23/07/2018,439.55
Pertemps Ltd,Operations,V088167,0922,0200,Employees,Agency Staff,23/07/2018,422.45
Pertemps Ltd,Operations,V088170,0929,0200,Employees,Agency Staff,23/07/2018,612.72
Pertemps Ltd,Operations,V088171,0900,0200,Employees,Agency Staff,23/07/2018,342.34
Pertemps Ltd,Operations,V088251,0900,0200,Employees,Agency Staff,27/07/2018,547.74
Pertemps Ltd,Operations,V088252,0929,0200,Employees,Agency Staff,27/07/2018,645.84
Pertemps Ltd,Operations,V088289,0925,0200,Employees,Agency Staff,31/07/2018,499.26
Pertemps Ltd,Operations,V088304,0923,0200,Employees,Agency Staff,31/07/2018,383.68
Pertemps Ltd,Operations,V088304,0925,0200,Employees,Agency Staff,31/07/2018,119.20
Pertemps Ltd,Operations,V088305,0922,0200,Employees,Agency Staff,31/07/2018,115.48
Pertemps Ltd,Operations,V088305,0932,0200,Employees,Agency Staff,31/07/2018,447.00
Pertemps Ltd,Operations,V088306,0920,0200,Employees,Agency Staff,31/07/2018,459.52
Pertemps Ltd,Operations,V088307,0920,0200,Employees,Agency Staff,31/07/2018,205.70
Pertemps Ltd,Operations,V088307,0925,0200,Employees,Agency Staff,31/07/2018,527.84
Pertemps Ltd,Operations,V088308,0925,0200,Employees,Agency Staff,31/07/2018,388.48
Pertemps Ltd,Operations,V088309,0925,0200,Employees,Agency Staff,31/07/2018,151.75
Pertemps Ltd,Operations,V088309,4317,0200,Employees,Agency Staff,31/07/2018,157.82
Pertemps Ltd,Operations,V088310,0925,0200,Employees,Agency Staff,31/07/2018,499.26
Pertemps Ltd,Operations,V088310,0925,0200,Employees,Agency Staff,31/07/2018,77.39
Pertemps Ltd,Operations,V088311,0923,0200,Employees,Agency Staff,31/07/2018,462.84
Pirtek (Kidderminster),Operations,V088241,0817,3510,Transport,Vehicle Maintenance,31/07/2018,786.37
Pirtek Worcester,Operations,V087850,0823,3510,Transport,Vehicle Maintenance,03/07/2018,368.87
Pirtek Worcester,Operations,V087938,0818,3510,Transport,Vehicle Maintenance,11/07/2018,326.03
Postage By Phone - Pitney Bowes,Finance,V087972,8633,4220,Supplies and Services,Postage,09/07/2018,1001.03
Postage By Phone - Pitney Bowes,Finance,V088035,8633,4220,Supplies and Services,Postage,13/07/2018,1000.00
PVC Vendo,Operations,V087934,0925,3100,Transport,"Vehicle General Costs (Cleaning,CMS FTA)",27/07/2018,408.60
PW Commercial Company Ltd T/A Printwaste,Property Services,V087983,8633,5506,Supplies and Services,Paper Recycling,27/07/2018,276.00
Red Kite Pest Control,Operations,V087828,0960,1000,Premises,Repairs & Maintenance,03/07/2018,250.00
Refuse Vehicle Solutions Limited,Operations,V087714,0832,3510,Transport,Vehicle Maintenance,13/07/2018,288.75
Refuse Vehicle Solutions Limited,Operations,V087764,0815,3510,Transport,Vehicle Maintenance,13/07/2018,137.50
Refuse Vehicle Solutions Limited,Operations,V087764,0821,3510,Transport,Vehicle Maintenance,13/07/2018,137.50
Refuse Vehicle Solutions Limited,Operations,V087773,0778,3510,Transport,Vehicle Maintenance,19/07/2018,137.50
Refuse Vehicle Solutions Limited,Operations,V087773,0816,3510,Transport,Vehicle Maintenance,19/07/2018,137.50
Refuse Vehicle Solutions Limited,Operations,V087954,0821,3510,Transport,Vehicle Maintenance,27/07/2018,137.50
Refuse Vehicle Solutions Limited,Operations,V087954,0824,3510,Transport,Vehicle Maintenance,27/07/2018,137.50
Ricoh UK Ltd,Development Control,V087854,7300,2125,Supplies and Services,ICT- Software Licences,23/07/2018,453.82
Royal British Legion Surrey,SMT,V088314,2819,5500,Supplies and Services,Miscellaneous Expenses,31/07/2018,1500.00
SB Print Limited,Community Services,V088107,6201,2800,Third Party payments,Contractors,19/07/2018,309.00
Shire Consulting,Property Services,V087592,2973,2800,Third Party payments,Contractors,11/07/2018,750.00
Shire Consulting,Property Services,V087813,2950,2800,Third Party payments,Contractors,23/07/2018,1650.00
Shuttersphere Ltd,Tourism,V087951,6550,2600,Supplies and Services,Items for Re-sale,11/07/2018,250.00
Signs Central,Operations,V088295,0925,2700,Supplies and Services,"Clothes, uniforms and laundry",31/07/2018,733.05
Spector Design Ltd,Housing,V087945,1563,7201,Capital,Mandatory Disabled Facilities Grant,09/07/2018,600.00
SSI Schaefer Limited,Operations,V087466,0929,2000,Supplies and Services,Furniture & Equipment,03/07/2018,10075.00
St James C of E Primary School,Democratic Services,V087991,2300,5400,Third Party payments,Grants,26/07/2018,-250.00
St James C of E Primary School,Democratic Services,V087991,2300,5400,Third Party payments,Grants,11/07/2018,250.00
St James C of E Primary School,Democratic Services,V087992,2300,5400,Third Party payments,Grants,26/07/2018,-250.00
St James C of E Primary School,Democratic Services,V087992,2300,5400,Third Party payments,Grants,11/07/2018,250.00
Stannah Lift Services Ltd,Housing,V087860,1563,7209,Capital,Discretionary Standard Adaptation Assist,03/07/2018,3928.00
Stannah Lift Services Ltd,Housing,V087943,1563,7201,Capital,Mandatory Disabled Facilities Grant,09/07/2018,3485.00
Stannah Lift Services Ltd,Housing,V087944,1563,7209,Capital,Discretionary Standard Adaptation Assist,09/07/2018,4142.00
Stannah Lift Services Ltd,Housing,V088236,1563,7201,Capital,Mandatory Disabled Facilities Grant,25/07/2018,1832.00
Stannah Lift Services Ltd,Housing,V088237,1563,7201,Capital,Mandatory Disabled Facilities Grant,25/07/2018,3773.00
Tenbury Transport Trust,Community Services,V088069,4070,5529,Third Party payments,Concessionary Fares,17/07/2018,321.00
Thamesdown Recycling,Operations,V087677,4314,2800,Third Party payments,Contractors,13/07/2018,1007.40
The Community Housing Group Limited,Finance,V087456,4311,2800,Third Party payments,Contractors,03/07/2018,47.02
The Community Housing Group Limited,Finance,V087456,4320,5500,Supplies and Services,Miscellaneous Expenses,03/07/2018,270.44
The Community Housing Group Limited,Finance,V087456,8870,5500,Supplies and Services,Miscellaneous Expenses,03/07/2018,23.51
The Helping Hand,Operations,V087804,0920,2000,Supplies and Services,Furniture & Equipment,03/07/2018,273.18
The Map Shop,Tourism,V087953,6550,2600,Supplies and Services,Items for Re-sale,11/07/2018,258.38
Thomson Reuters,Legal Services,V088008,8841,4130,Supplies and Services,Publications,13/07/2018,3193.67
Thomson Reuters,Legal Services,V088008,8841,4130,Supplies and Services,Publications,13/07/2018,6648.99
Thomson Reuters,Legal Services,V088075,8841,4130,Supplies and Services,Publications,23/07/2018,368.00
Trevor Roberts Associates Ltd,Electoral Services,V087572,2300,0600,Employees,Training,05/07/2018,1840.00
Truck Tyre Solutions,Operations,V087396,0831,3320,Transport,Tyres,03/07/2018,508.00
Truck Tyre Solutions,Operations,V087498,0815,3320,Transport,Tyres,05/07/2018,518.00
Truck Tyre Solutions,Operations,V087501,0817,3320,Transport,Tyres,05/07/2018,277.50
Truck Tyre Solutions,Operations,V087586,0815,3320,Transport,Tyres,11/07/2018,453.00
Truck Tyre Solutions,Operations,V087636,0796,3320,Transport,Tyres,13/07/2018,727.50
Truck Tyre Solutions,Operations,V087641,0832,3320,Transport,Tyres,17/07/2018,525.00
Truck Tyre Solutions,Operations,V087716,0824,3320,Transport,Tyres,19/07/2018,835.50
Truck Tyre Solutions,Operations,V087805,0777,3320,Transport,Tyres,25/07/2018,705.50
Truck Tyre Solutions,Operations,V087810,0821,3320,Transport,Tyres,25/07/2018,252.50
Truck Tyre Solutions,Operations,V087851,0777,3320,Transport,Tyres,27/07/2018,1158.50
Truck Tyre Solutions,Operations,V087861,0777,3320,Transport,Tyres,27/07/2018,508.00
Upton Blues Festival,Tourism,V088204,6590,9252,Income,Commission,31/07/2018,-36.50
Upton Blues Festival,Tourism,V088204,9600,8902,Balance Sheet,Payments,31/07/2018,365.00
Upton Community Care,Community Services,V088094,4070,5529,Third Party payments,Concessionary Fares,17/07/2018,299.00
Upton Jazz Association Limited,Tourism,V088153,6590,9252,Income,Commission,25/07/2018,-342.00
Upton Jazz Association Limited,Tourism,V088153,9592,8902,Balance Sheet,Payments,25/07/2018,3420.00
Upton Jazz Association Limited,Tourism,V088154,6590,9252,Income,Commission,25/07/2018,-38.70
Upton Jazz Association Limited,Tourism,V088154,9601,8902,Balance Sheet,Payments,25/07/2018,387.00
Valuation Office Agency,Property Services,V088019,4837,2800,Third Party payments,Contractors,13/07/2018,326.10
Vision Gelpack Ltd,Operations,V087512,0922,2000,Supplies and Services,Furniture & Equipment,09/07/2018,1388.75
Vision Gelpack Ltd,Operations,V087867,0932,2000,Supplies and Services,Furniture & Equipment,19/07/2018,1721.50
Vision Techniques (UK) Ltf,Operations,V087762,0821,3510,Transport,Vehicle Maintenance,23/07/2018,260.00
Vision Techniques (UK) Ltf,Operations,V087762,0900,1000,Premises,Repairs & Maintenance,23/07/2018,105.00
Water Plus,Property Services,V088187,0900,1511,Premises,Water services,25/07/2018,475.38
Webaspx Limited,Operations,V087485,0900,2125,Supplies and Services,ICT- Software Licences,03/07/2018,5161.00
West Mercia Energy,Operations,V087617,9918,8902,Balance Sheet,Payments,05/07/2018,3661.89
West Mercia Energy,Operations,V087627,9918,8902,Balance Sheet,Payments,05/07/2018,2827.29
West Mercia Energy,Operations,V087658,9918,8902,Balance Sheet,Payments,13/07/2018,3416.84
West Mercia Energy,Operations,V087659,9918,8902,Balance Sheet,Payments,13/07/2018,2592.68
West Mercia Energy,Operations,V087782,9918,8902,Balance Sheet,Payments,19/07/2018,3200.73
West Mercia Energy,Operations,V087783,9918,8902,Balance Sheet,Payments,19/07/2018,3079.41
West Mercia Energy,Operations,V087784,9918,8902,Balance Sheet,Payments,19/07/2018,2487.71
West Mercia Energy,Operations,V087862,9918,8902,Balance Sheet,Payments,25/07/2018,2617.36
West Midlands Employers,Finance,V088211,8812,5300,Supplies and Services,Subscriptions,25/07/2018,1500.00
Western Power Distribution,Property Services,V087832,2997,1000,Premises,Repairs & Maintenance,23/07/2018,945.07
Whittaker Office Solutions,Property Services,V088054,8633,4000,Supplies and Services,Printing & Photocopying,13/07/2018,797.22
Whittaker Office Solutions,Property Services,V088054,8633,4100,Supplies and Services,Stationery,13/07/2018,74.52
Whittaker Office Solutions,Property Services,V088054,8633,4100,Supplies and Services,Stationery,13/07/2018,155.91
Worcester City Council,Finance,V088105,8862,5507,Third Party payments,OLA`s,19/07/2018,12845.00
Worcestershire County Council,Community Services,V087845,4311,5507,Third Party payments,OLA`s,05/07/2018,15000.00
Worcestershire County Council,Community Services,V087898,6230,2800,Third Party payments,Contractors,05/07/2018,3878.11
Worcestershire County Council,Finance,V088025,8870,5507,Third Party payments,OLA`s,13/07/2018,348.05
Worcestershire County Council,Community Services,V088082,4323,2800,Third Party payments,Contractors,19/07/2018,263.64
Wright Staff Recruitment Ltd,Operations,V087848,0922,0200,Employees,Agency Staff,03/07/2018,265.84
Wright Staff Recruitment Ltd,Operations,V087848,0923,0200,Employees,Agency Staff,03/07/2018,688.00
Wright Staff Recruitment Ltd,Operations,V087848,0925,0200,Employees,Agency Staff,03/07/2018,693.39
Wright Staff Recruitment Ltd,Operations,V087848,0925,0200,Employees,Agency Staff,03/07/2018,111.37
Wright Staff Recruitment Ltd,Operations,V087937,0923,0200,Employees,Agency Staff,11/07/2018,698.78
Wright Staff Recruitment Ltd,Operations,V087937,0925,0200,Employees,Agency Staff,11/07/2018,714.95
Wright Staff Recruitment Ltd,Operations,V087937,0925,0200,Employees,Agency Staff,11/07/2018,384.40
Wright Staff Recruitment Ltd,Operations,V088070,0922,0200,Employees,Agency Staff,17/07/2018,143.70
Wright Staff Recruitment Ltd,Operations,V088070,0923,0200,Employees,Agency Staff,17/07/2018,639.49
Wright Staff Recruitment Ltd,Operations,V088070,0925,0200,Employees,Agency Staff,17/07/2018,720.34
Wright Staff Recruitment Ltd,Operations,V088146,0923,0200,Employees,Agency Staff,25/07/2018,623.32
Wright Staff Recruitment Ltd,Operations,V088146,0925,0200,Employees,Agency Staff,25/07/2018,132.92
Wright Staff Recruitment Ltd,Operations,V088146,0925,0200,Employees,Agency Staff,25/07/2018,655.66
Wright Staff Recruitment Ltd,Operations,V088296,0925,0200,Employees,Agency Staff,31/07/2018,93.41
Wright Staff Recruitment Ltd,Operations,V088296,0925,0200,Employees,Agency Staff,31/07/2018,666.44
Wychavon District Council,Finance,V087792,7000,5507,Third Party payments,OLA`s,05/07/2018,45350.00
Wychavon District Council,Finance,V087793,8646,5507,Third Party payments,OLA`s,05/07/2018,5137.71
Wychavon District Council,Finance,V087794,2609,5507,Third Party payments,OLA`s,05/07/2018,3906.47
Wychavon District Council,Finance,V087795,8864,5507,Third Party payments,OLA`s,05/07/2018,13471.68
Wychavon District Council,Finance,V087797,3600,5507,Third Party payments,OLA`s,05/07/2018,60937.50
Wychavon District Council,Finance,V087798,4300,5507,Third Party payments,OLA`s,05/07/2018,11640.44
Wychavon District Council,Finance,V087799,2819,5507,Third Party payments,OLA`s,05/07/2018,19046.62
Wychavon District Council,Finance,V087800,7300,5507,Third Party payments,OLA`s,05/07/2018,8946.98
Wychavon District Council,Finance,V087801,7000,5507,Third Party payments,OLA`s,05/07/2018,35527.50
Wychavon District Council,Finance,V087837,8645,5507,Third Party payments,OLA`s,05/07/2018,79686.00
Wychavon District Council,Property Services,V087838,0900,4230,Supplies and Services,Telephones,13/07/2018,24.50
Wychavon District Council,Property Services,V087838,0920,4230,Supplies and Services,Telephones,13/07/2018,34.12
Wychavon District Council,Property Services,V087838,0922,4230,Supplies and Services,Telephones,13/07/2018,2.75
Wychavon District Council,Property Services,V087838,0923,4230,Supplies and Services,Telephones,13/07/2018,2.75
Wychavon District Council,Property Services,V087838,0925,4230,Supplies and Services,Telephones,13/07/2018,36.75
Wychavon District Council,Property Services,V087838,0932,4230,Supplies and Services,Telephones,13/07/2018,2.75
Wychavon District Council,Property Services,V087838,0935,4230,Supplies and Services,Telephones,13/07/2018,2.75
Wychavon District Council,Property Services,V087838,0960,4230,Supplies and Services,Telephones,13/07/2018,5.50
Wychavon District Council,Property Services,V087838,2300,4230,Supplies and Services,Telephones,13/07/2018,12.00
Wychavon District Council,Property Services,V087838,4225,4230,Supplies and Services,Telephones,13/07/2018,12.00
Wychavon District Council,Property Services,V087838,4302,4230,Supplies and Services,Telephones,13/07/2018,36.00
Wychavon District Council,Property Services,V087838,4311,4230,Supplies and Services,Telephones,13/07/2018,33.65
Wychavon District Council,Property Services,V087838,4837,4230,Supplies and Services,Telephones,13/07/2018,24.00
Wychavon District Council,Property Services,V087838,6098,4230,Supplies and Services,Telephones,13/07/2018,84.00
Wychavon District Council,Property Services,V087838,6230,4230,Supplies and Services,Telephones,13/07/2018,12.00
Wychavon District Council,Property Services,V087838,6710,4230,Supplies and Services,Telephones,13/07/2018,20.25
Wychavon District Council,Property Services,V087838,7300,4230,Supplies and Services,Telephones,13/07/2018,87.25
Wychavon District Council,Property Services,V087838,7500,4230,Supplies and Services,Telephones,13/07/2018,60.00
Wychavon District Council,Property Services,V087838,7850,4230,Supplies and Services,Telephones,13/07/2018,12.00
Wychavon District Council,Property Services,V087838,8120,4230,Supplies and Services,Telephones,13/07/2018,13.75
Wychavon District Council,Property Services,V087838,8841,4230,Supplies and Services,Telephones,13/07/2018,67.00
Wychavon District Council,Property Services,V087838,8860,4230,Supplies and Services,Telephones,13/07/2018,13.75
Wychavon District Council,Property Services,V087838,8861,4230,Supplies and Services,Telephones,13/07/2018,14.75
Wychavon District Council,Property Services,V087838,8864,4230,Supplies and Services,Telephones,13/07/2018,12.00
Wychavon District Council,Finance,V087844,8650,5507,Third Party payments,OLA`s,05/07/2018,24430.00
Wychavon District Council,Finance,V087871,8013,5500,Supplies and Services,Miscellaneous Expenses,09/07/2018,333.32
Wychavon District Council,Finance,V087897,8013,5507,Third Party payments,OLA`s,19/07/2018,254.00
Wychavon District Council,Finance,V087966,7500,5507,Third Party payments,OLA`s,11/07/2018,1587.91
Wychavon District Council,Property Services,V088132,0900,4230,Supplies and Services,Telephones,25/07/2018,25.41
Wychavon District Council,Property Services,V088132,0920,4230,Supplies and Services,Telephones,25/07/2018,34.20
Wychavon District Council,Property Services,V088132,0922,4230,Supplies and Services,Telephones,25/07/2018,2.75
Wychavon District Council,Property Services,V088132,0923,4230,Supplies and Services,Telephones,25/07/2018,2.75
Wychavon District Council,Property Services,V088132,0925,4230,Supplies and Services,Telephones,25/07/2018,39.50
Wychavon District Council,Property Services,V088132,0932,4230,Supplies and Services,Telephones,25/07/2018,2.75
Wychavon District Council,Property Services,V088132,0935,4230,Supplies and Services,Telephones,25/07/2018,2.75
Wychavon District Council,Property Services,V088132,0960,4230,Supplies and Services,Telephones,25/07/2018,5.50
Wychavon District Council,Property Services,V088132,2300,4230,Supplies and Services,Telephones,25/07/2018,12.00
Wychavon District Council,Property Services,V088132,4225,4230,Supplies and Services,Telephones,25/07/2018,12.00
Wychavon District Council,Property Services,V088132,4302,4230,Supplies and Services,Telephones,25/07/2018,36.00
Wychavon District Council,Property Services,V088132,4311,4230,Supplies and Services,Telephones,25/07/2018,33.00
Wychavon District Council,Property Services,V088132,4837,4230,Supplies and Services,Telephones,25/07/2018,24.13
Wychavon District Council,Property Services,V088132,6098,4230,Supplies and Services,Telephones,25/07/2018,84.07
Wychavon District Council,Property Services,V088132,6230,4230,Supplies and Services,Telephones,25/07/2018,12.00
Wychavon District Council,Property Services,V088132,6710,4230,Supplies and Services,Telephones,25/07/2018,20.25
Wychavon District Council,Property Services,V088132,7300,4230,Supplies and Services,Telephones,25/07/2018,87.25
Wychavon District Council,Property Services,V088132,7500,4230,Supplies and Services,Telephones,25/07/2018,60.00
Wychavon District Council,Property Services,V088132,7850,4230,Supplies and Services,Telephones,25/07/2018,12.00
Wychavon District Council,Property Services,V088132,8120,4230,Supplies and Services,Telephones,25/07/2018,13.75
Wychavon District Council,Property Services,V088132,8841,4230,Supplies and Services,Telephones,25/07/2018,67.00
Wychavon District Council,Property Services,V088132,8860,4230,Supplies and Services,Telephones,25/07/2018,13.75
Wychavon District Council,Property Services,V088132,8861,4230,Supplies and Services,Telephones,25/07/2018,12.00
Wychavon District Council,Property Services,V088132,8864,4230,Supplies and Services,Telephones,25/07/2018,12.00
Wychavon District Council,Finance,V088315,8861,5507,Third Party payments,OLA`s,31/07/2018,1000.00
Yellow Publications Ltd,Tourism,V087609,6550,2600,Supplies and Services,Items for Re-sale,11/07/2018,798.04
Zep Superior Solutions,Operations,V087737,0900,1311,Premises,Contract cleaning & Cleaning Supplies,13/07/2018,1561.60
Zep Superior Solutions,Operations,V088003,0925,2000,Supplies and Services,Furniture & Equipment,31/07/2018,1593.60
Zurich Municipal,Finance,V087500,4660,4402,Supplies and Services,Uninsured Loss,09/07/2018,1873.00
